[Event "Slovakian ECo-C Extraliga 2024-25"]
[Site "Slovakia"]
[Date "2025.01.19"]
[Round "4.4"]
[White "Karas, Marek"]
[Black "Durana, Jonas"]
[Result "1-0"]
[Annotator "TA"]
[ECO "D02"]
[WhiteElo "2147"]
[BlackElo "1968"]
[PlyCount "129"]
[EventDate "2024.09.12"]
[EventType "team-tourn"]
[EventCountry "SVK"]
[SourceTitle "playchess.com"]
[Source "ChessBase"]
[SourceQuality "1"]
[TimeControl "5400+30"]

{[%evp 10,129,0,-10,10,-14,-20,-1,-5,-16,-12,-10,-2,0,-19,-13,23,-14,45,-76,-58,-82,-77,-208,-193,-377,-248,-341,-250,-237,-237,-283,-270,-255,-250,-255,-244,-257,-235,-234,-242,-260,-160,-142,-147,-152,-100,-102,-99,-115,0,0,0,0,0,0,317,321,292,0,102,108,106,103,108,94,108,104,95,85,91,110,121,39,39,47,51,11,6,0,0,-9,0,-11,0,0,0,0,6,0,0,0,0,0,0,0,0,0,0,0,0,-13,0,-16,-18,-24,0,-8,0,0,8,2,1021,1023,1554,1576,1853,1532,2434,2757,5222,2419]} 1. d4 {[%emt 0:00:11]} d5 {[%emt 0:00:04]} 2. Nf3 {[%emt 0:00:46]} e6 {[%emt 0:00:08]} 3. Bf4 {[%emt 0:01:24]} Bd6 {[%emt 0:00:16]} 4. Bg3 {[%emt 0:00:27]} Nf6 {[%emt 0:01:11]} 5. e3 {[%emt 0:00:18]} O-O {[%emt 0:00:40]} 6. Nbd2 {[%emt 0:02:11]} c5 {[%emt 0:06:08]} 7. c3 {[%emt 0:01:52]} Qc7 {[%emt 0:01:17]} 8. dxc5 {[%emt 0:01:37]} Qxc5 {[%emt 0:02:13]} 9. Bd3 {[%emt 0:00:08]} Nbd7 {[%emt 0:17:49]} 10. e4 {[%emt 0:00:21]} dxe4 {[%emt 0:08:13]} 11. Nxe4 {[%emt 0:00:22]} Nxe4 {[%emt 0:00:55]} 12. Bxe4 {[%emt 0:00:06]} Be7 {[%emt 0:36:17]} 13. Qb3 {[%emt 0:12:53]} Nb6 {[%emt 0:06:23]} (13... Qh5 $11) 14. Rd1 {[%emt 0:15:04]} (14. O-O $14 {stays ahead.}) 14... f5 $1 $17 {[%emt 0:04:21]} 15. Bb1 $1 {[%emt 0:01:00]} f4 $1 {[%emt 0:01:39]} 16. Qc2 {[%emt 0:01:18]} Qh5 $19 {[%emt 0:02:13]} (16... fxg3 $2 17. Qxh7+ Kf7 18. Qg6+ (18. fxg3 $2 Qe3+ 19. Kf1 Bc5 $19) (18. hxg3 Bf6 $14) 18... Kg8 19. hxg3 $18 (19. fxg3 $2 Qe3+ 20. Kf1 Rxf3+ 21. gxf3 Qxf3+ 22. Ke1 Qxh1+ $19)) 17. Ke2 $2 {[%emt 0:05:03]} (17. O-O {was worth a try.}) 17... g6 {[%emt 0:04:23][%cal Oc8d7]} (17... fxg3 18. hxg3 Qb5+ (18... Qf5 19. Qd2 $11) 19. Ke1 $11) 18. a4 {[%emt 0:01:01]} fxg3 {[%emt 0:02:02]} 19. hxg3 {[%emt 0:00:14]} Qf5 {[%emt 0:00:27]} 20. Qd2 {[%emt 0:00:24]} Qf6 {[%emt 0:01:21][%cal Oe6e5]} 21. Rh4 {[%emt 0:06:22]} Bd7 {[%emt 0:00:43]} 22. Rdh1 {[%emt 0:02:12]} Rf7 {[%emt 0:00:47][%cal Oa8d8]} (22... Bxa4 23. Rxh7 Bb5+ 24. Ke1 $16) 23. Rf4 {[%emt 0:02:22]} Qg7 {[%emt 0:00:06]} 24. Rxf7 {[%emt 0:00:22]} Kxf7 {[%emt 0:00:54]} (24... Qxf7 25. Ne5 Qf6 (25... Qe8 $2 26. Qh6 $18) 26. Nxd7 Nxd7 27. Qh6 (27. Qxd7 $2 Qe5+ 28. Kd2 Rd8 $19) 27... Qe5+ 28. Kd1) 25. Ba2 {[%emt 0:07:22]} Rh8 {[%emt 0:01:16][%cal Oh8d8]} 26. a5 {[%emt 0:02:23]} Bb5+ {[%emt 0:00:42]} 27. Ke1 {[%emt 0:00:01]} Nd7 {[%emt 0:00:47]} (27... Na4 $1 {And now ...Nc5 would win.} 28. Ng5+ Ke8 29. Nxe6 Qe5+ 30. Kd1 Qd6) 28. Nd4 {[%emt 0:01:38]} Qe5+ {[%emt 0:00:05]} 29. Kd1 {[%emt 0:00:45][%cal Oh1e1] [#]} Nf8 {[%emt 0:00:49]} ({Black should play} 29... Ba4+ $1 $17 30. b3 Bc6) 30. Re1 $1 $36 {[%emt 0:00:32][%mdl 2048] White is more active.} Qh5+ $1 {[%emt 0:00:05]} 31. g4 $1 {[%emt 0:00:24]} Qxg4+ {[%emt 0:01:08]} 32. f3 $1 {[%emt 0:00:01]} Qh5 $2 {[%emt 0:00:26][%mdl 8192]} (32... Qh4 $11 {and Black has nothing to worry.} 33. g3 Qxg3 34. Nxb5 Qxf3+ 35. Kc1 Kg7) 33. Qf4+ $18 {[%emt 0:03:43]} Kg7 {[%emt 0:00:37]} 34. Rxe6 $2 {[%emt 0:01:23]} (34. Bxe6 $18 {And now Qf7+ would win.} Be8 35. Bd7) 34... Qh1+ {[%emt 0:00:32]} (34... Nxe6 $2 35. Nxe6+ Kg8 36. Qb8+ Kf7 37. Nf4+ (37. Qxh8 Qh1+ 38. Kc2 Qxg2+ 39. Kb3 Kxe6 $19) 37... Kg7 38. Nxh5+ gxh5 39. Qe5+ (39. Qxa7 Rd8+ 40. Kc2 Bd3+ 41. Kb3 Rd7 $18) (39. Qxb7 Ba4+ 40. Kc1 Re8 $18) 39... Bf6 40. Qxb5 $18) (34... Bd8 $11 35. Rd6 Qh1+ (35... Bxa5 $2 36. Qf7+ Kh6 37. Nf5+ $18) 36. Kc2 Ba4+ (36... Qxg2+ 37. Kb3 $11) 37. b3 Qxg2+ 38. Kd3 Qf1+ (38... Bxa5 $2 39. Qe5+ Kh6 40. Qxh8 $18) 39. Kc2 Qf2+ (39... Bxa5 40. Qf6+ Kg8 41. bxa4+) 40. Kd1 Qh4 (40... Bxa5 $2 41. bxa4 Qxa2 42. Ne6+ Qxe6 43. Rxe6 $18) 41. Qxh4 Bxb3+ 42. Bxb3 Bxh4) 35. Re1 $16 {[%emt 0:03:12] The board is on fire.} Ba4+ {[%emt 0:00:02]} (35... Qxg2 36. Rxe7#) 36. b3 {[%emt 0:00:46] White has more active pieces. The black rooks are passive.} Qh4 {[%emt 0:00:05]} (36... Qxg2 37. Rxe7+ Kg8 38. Qf7#) 37. Qxh4 {[%emt 0:05:02]} Bxh4 {[%emt 0:00:07]} 38. Re4 {[%emt 0:00:32]} (38. bxa4 Bxe1 39. Kxe1 Nd7 $19) 38... Bxb3+ {[%emt 0:00:48]} 39. Nxb3 {[%emt 0:00:28]} ({Don't take} 39. Bxb3 Bf6 40. f4 h6 $18) 39... Bf6 {[%emt 0:00:42][%cal Of8d7] [#]} 40. Rb4 $1 {[%emt 0:01:43]} b6 {[%emt 0:01:09]} 41. Nd4 {[%emt 0:02:18]} ({White should try} 41. axb6 $16 axb6 42. Rxb6) 41... Nd7 $14 {[%emt 0:00:00]} 42. Ne6+ Kh6 {[%emt 0:00:00]} 43. axb6 {[%emt 0:00:00]} axb6 {[%emt 0:00:00]} 44. Rg4 {[%emt 0:00:00]} Nc5 {[%emt 0:00:00]} 45. Nd4 {[%emt 0:00:00]} Rc8 {[%emt 0:00:00]} 46. Ne2 {[%emt 0:00:00]} Kg7 {[%emt 0:00:29]} 47. Rb4 {[%emt 0:00:00]} Rc6 {[%emt 0:01:04]} 48. Kc2 {[%emt 0:00:00]} Be5 {[%emt 0:01:42]} 49. Nd4 {[%emt 0:00:00]} Rf6 {[%emt 0:01:01]} 50. Bd5 {[%emt 0:00:00]} Rd6 {[%emt 0:00:32]} 51. Ba8 {[%emt 0:00:00]} Bxd4 {[%emt 0:00:32]} 52. cxd4 $11 {[%emt 0:00:00][%mdl 4096] Endgame KRB-KRN} Ne6 {[%emt 0:00:03]} 53. Kc3 {[%emt 0:00:00]} Kf6 {[%emt 0:00:17]} 54. Be4 {[%emt 0:00:00]} h5 {[%emt 0:00:41]} 55. Ra4 {[%emt 0:00:00]} h4 {[%emt 0:00:34]} 56. Rb4 {[%emt 0:00:00]} Nf4 {[%emt 0:00:29]} 57. Rb2 {[%emt 0:00:00]} Ne6 {[%emt 0:01:01]} 58. Rd2 {[%emt 0:00:00]} Kg5 {[%emt 0:00:37]} 59. d5 {[%emt 0:00:00]} Nc5 {[%emt 0:00:30]} 60. Kc4 {[%emt 0:00:39]} Nxe4 $4 {[%emt 0:00:29][%mdl 8192]} (60... Kf4 $11) 61. fxe4 $18 {[%emt 0:00:09][%cal Bf3e4,Be4e5,Be5e6][%mdl 32]} Kf4 {[%emt 0:00:15]} 62. Kd4 {[%emt 0:00:12]} g5 {[%emt 0:00:36]} 63. e5 {[%emt 0:00:18]} Rd8 {[%emt 0:00:19]} 64. e6 {[%emt 0:00:24]} Kf5 {[%emt 0:00:16]} 65. Rf2+ {[%emt 0:00:06]} (65. e7 $142 Ra8 66. Rf2+ Kg4 67. d6) 1-0

[Event "Slovakian ECo-C Extraliga 2024-25"]
[Site "Slovakia"]
[Date "2025.01.19"]
[Round "4.5"]
[White "Hujbert Florian"]
[Black "Raczek, Krzysztof"]
[Result "1/2-1/2"]
[Annotator "TA"]
[ECO "D02"]
[WhiteElo "2413"]
[BlackElo "2443"]
[PlyCount "103"]
[EventDate "2024.09.12"]
[EventType "team-tourn"]
[EventCountry "SVK"]
[SourceTitle "playchess.com"]
[Source "ChessBase"]
[SourceQuality "1"]
[TimeControl "5400+30"]

{[%evp 11,103,-6,20,24,23,11,31,8,10,-10,-8,-15,-2,-43,-37,-22,-23,-21,-21,-33,-15,-27,-9,-27,-25,-31,-22,-42,-47,-41,-38,-38,-45,-33,-26,-28,-27,-31,-33,-29,-31,-25,0,0,0,0,0,0,0,0,0,-120,-103,-124,-105,-85,-72,-83,-71,-127,-83,-61,-47,-73,0,-97,-61,-196,-125,-148,0,-199,-186,-195,-107,-93,-86,-242,-242,-242,-242,-558,-548,-550,0,0,0,0,0,0,0,0,0,0]} 1. Nf3 {[%emt 0:00:11]} d5 {[%emt 0:00:09]} 2. d4 {[%emt 0:00:40]} Nf6 {[%emt 0:01:27]} 3. c3 {[%emt 0:00:13]} e6 {[%emt 0:00:20]} 4. Bf4 {[%emt 0:00:47]} c5 {[%emt 0:00:08]} 5. e3 {[%emt 0:00:32]} Nc6 {[%emt 0:00:28]} 6. Nbd2 {[%emt 0:01:00]} cxd4 {[%emt 0:07:35]} 7. exd4 {[%emt 0:00:14]} Nh5 {[%emt 0:00:05]} 8. Be3 {[%emt 0:03:42]} Bd6 {[%emt 0:10:18]} 9. g3 {[%emt 0:00:36] White is slightly better.} Nf6 {[%emt 0:06:53]} 10. h3 {[%emt 0:14:36]} O-O {[%emt 0:06:25]} 11. Bg2 {[%emt 0:01:28]} b6 {[%emt 0:11:58]} 12. Qb1 {[%emt 0:07:57]} Qc7 {[%emt 0:12:09]} 13. O-O {[%emt 0:01:15]} Bb7 {[%emt 0:00:39]} 14. Re1 {[%emt 0:02:52]} Rfe8 {[%emt 0:01:31]} 15. Nh2 {[%emt 0:18:25]} Na5 {[%emt 0:07:33]} 16. Ng4 {[%emt 0:05:14]} Nd7 {[%emt 0:01:15]} 17. f4 {[%emt 0:03:42]} Nc4 {[%emt 0:04:12]} 18. Nf3 {[%emt 0:01:31]} f5 {[%emt 0:02:19]} 19. Nf2 {[%emt 0:05:06]} Nf6 {[%emt 0:00:38]} 20. Ne5 {[%emt 0:02:20]} Nxe3 {[%emt 0:00:48]} 21. Rxe3 {[%emt 0:00:05]} Ne4 {[%emt 0:00:10]} 22. Nfd3 {[%emt 0:02:38]} b5 {[%emt 0:03:47]} 23. Qe1 {[%emt 0:01:23]} a5 {[%emt 0:00:17]} 24. Rc1 {[%emt 0:01:04]} Rec8 {[%emt 0:05:41]} 25. a3 {[%emt 0:01:22]} Qe7 {[%emt 0:01:23]} 26. Re2 {[%emt 0:06:02]} b4 {[%emt 0:03:31]} 27. axb4 {[%emt 0:00:18]} axb4 {[%emt 0:01:55]} 28. Nxb4 {[%emt 0:05:24]} Bxb4 {[%emt 0:02:41]} 29. cxb4 {[%emt 0:01:56]} Rxc1 {[%emt 0:02:16]} 30. Qxc1 {[%emt 0:00:04]} Qxb4 {[%emt 0:01:03]} 31. Bxe4 {[%emt 0:02:12]} (31. Kh2 $11 {remains equal.}) 31... dxe4 {[%emt 0:00:25]} (31... fxe4 $6 32. Qc7 $11) 32. Qe3 {[%emt 0:00:53]} Rd8 {[%emt 0:01:10]} 33. Rd2 {[%emt 0:00:34]} Bd5 {[%emt 0:01:39]} 34. Qc3 {[%emt 0:02:20]} Rb8 {[%emt 0:02:28]} 35. Kf2 {[%emt 0:02:25]} (35. Qxb4 $142 Rxb4 36. h4) 35... Qb7 {[%emt 0:00:51]} 36. Rc2 {[%emt 0:01:01]} Bb3 {[%emt 0:00:16]} 37. Rc1 {[%emt 0:03:09]} Bd5 {[%emt 0:01:01][%cal Oh7h6]} (37... h6 $5 38. Qc7 Ba4 (38... e3+ 39. Kg1 $15) 39. Qxb7 Rxb7 40. Rc8+ Kh7 $11) 38. Rc2 {[%emt 0:00:03]} h6 {[%emt 0:00:34]} 39. h4 {[%emt 0:01:06]} (39. g4 $15) 39... Bb3 {[%emt 0:00:43]} (39... Kh7 $19 40. Rc1 Qxb2+ 41. Qxb2 Rxb2+ 42. Ke1 Rb3) 40. Rc1 $17 {[%emt 0:01:39] [#]} Bd5 {[%emt 0:00:24]} (40... Ba4 $1 $17 41. h5 Qxb2+ 42. Qxb2 Rxb2+ 43. Ke1 Kf8) 41. Rc2 $19 {[%emt 0:02:21]} Kh7 {[%emt 0:00:00]} 42. h5 {[%emt 0:00:00]} Bb3 {[%emt 0:00:00]} ({Black should play} 42... Qa7 $19 {aiming for ...Rb3.} 43. b4 Qa4) 43. Rc1 $17 {[%emt 0:00:00]} Ba4 {[%emt 0:00:00]} 44. Ng6 $2 {[%emt 0:00:00]} (44. g4 $17) 44... e3+ $19 {[%emt 0:00:00]} (44... Qxb2+ 45. Qxb2 Rxb2+ 46. Kg1 $15) 45. Qxe3 {[%emt 0:00:00]} Qd5 {[%emt 0:00:00]} 46. Qc3 {[%emt 0:00:00] [#]} (46. b3 {is more resistant.} Bc6 (46... Qxb3 47. Qxb3 Bxb3 48. Rb1 $14) (46... Rxb3 47. Nf8+ Kh8 48. Ng6+ Kh7 49. Nf8+ Kh8 50. Ng6+ Kh7 $11) (46... Bxb3 47. Qe5 $11) 47. Nh4 Rxb3 48. Qxb3 Qxb3 49. Rxc6) 46... Rb3 $1 {[%emt 0:01:43]} (46... Qa2 47. Kg1 $17) 47. Qxb3 {[%emt 0:00:00]} Bxb3 {[%emt 0:00:42]} ({Black should try} 47... Qxb3 $19 48. Rc8 Be8 (48... Qxb2+ $2 49. Ke3 $19) 49. Rxe8 Qxb2+ 50. Kf3 Qc3+ (50... Qxd4 51. Rh8#) 51. Ke2 Qc2+ (51... Qxg3 52. Rh8#) 52. Ke1 Qe4+ 53. Kf2 Qxd4+ 54. Kg2 Qe4+ 55. Kg1 Qe3+ 56. Kh2 Qe2+ 57. Kg1 Qxh5 58. Rxe6 Qf3) 48. Rc8 $1 $11 {[%emt 0:00:00][%csl Gg6][%cal Rc8h8] The position is equal.} Qxd4+ {[%emt 0:00:05]} 49. Kg2 {[%emt 0:00:00][%csl Gg6][%cal Rc8h8]} Qe4+ $1 {[%emt 0:00:26]} ({Worse is} 49... Qxb2+ 50. Kh3) (49... Qd5+ 50. Kh2 Qd2+ 51. Kh3) 50. Kf2 $1 {[%emt 0:00:00][%csl Gg6][%cal Rc8h8]} Qd4+ {[%emt 0:00:44]} 51. Kg2 {[%emt 0:00:00][%csl Gg6][%cal Rc8h8] Chess con chili.} Qe4+ $1 {[%emt 0:00:55]} ({Stronger than} 51... Qxb2+ 52. Kh3) ({Not} 51... Qd5+ 52. Kh2 Qd2+ 53. Kh3) 52. Kf2 $1 {[%emt 0:00:00] Weighted Error Value: White=0.24 (precise) /Black=0.24 (precise) .  Missed win:     	---       	Black=1      Mistake:       	White=5     	Black=3      Inaccurate:     	White=1     	Black=1      OK:         	White=14    	Black=16     Best:        	White=6     	Black=2      Strong:       	White=3     	Black=3} 1/2-1/2

[Event "Slovakian ECo-C Extraliga 2024-25"]
[Site "Slovakia"]
[Date "2025.01.19"]
[Round "4.5"]
[White "Mrva, Martin"]
[Black "Zambor, Norbert"]
[Result "1-0"]
[Annotator "TA"]
[ECO "B12"]
[WhiteElo "2398"]
[BlackElo "2243"]
[PlyCount "176"]
[EventDate "2024.09.12"]
[EventType "team-tourn"]
[EventCountry "SVK"]
[SourceTitle "playchess.com"]
[Source "ChessBase"]
[SourceQuality "1"]
[TimeControl "5400+30"]

{[%evp 13,176,13,29,15,38,28,27,28,45,37,56,48,49,48,47,49,54,58,58,0,0,-82,-84,-83,-96,-84,-107,-96,-82,-120,0,0,0,0,0,0,124,0,247,100,127,132,132,61,116,111,114,126,127,83,129,136,215,100,99,109,102,99,107,107,100,100,92,14,13,0,91,40,40,40,37,36,76,76,78,78,79,78,80,80,80,80,80,40,40,40,40,8,8,0,40,0,80,80,80,40,40,40,40,40,40,40,40,40,40,40,40,40,40,40,40,40,40,40,40,40,40,40,40,40,40,40,40,40,40,40,40,0,40,40,40,40,40,8,97,97,104,104,104,97,101,97,104,104,104,104,104,104,29977,104,104,27,27,27,27,27,27,27,27,27,29987,29988,29988,29989,29995]} 1. e4 {[%emt 0:00:03]} c6 {[%emt 0:00:04]} 2. d4 {[%emt 0:00:41]} d5 {[%emt 0:00:04]} 3. e5 {[%emt 0:00:46]} Bf5 {[%emt 0:00:08]} 4. Nf3 {[%emt 0:03:04]} e6 {[%emt 0:00:06]} 5. Be2 {[%emt 0:01:17]} Nd7 {[%emt 0:00:07]} 6. O-O {[%emt 0:01:05]} Ne7 {[%emt 0:00:04]} 7. c3 {[%emt 0:04:30]} h6 {[%emt 0:00:06]} 8. Nbd2 {[%emt 0:03:07]} g5 {[%emt 0:01:59]} 9. Ne1 {[%emt 0:08:42]} Qc7 {[%emt 0:00:07]} 10. Bh5 {[%emt 0:08:08]} Bg7 {[%emt 0:01:19]} 11. f4 {[%emt 0:01:16]} gxf4 {[%emt 0:00:41][%cal Od7e5]} 12. Ndf3 {[%emt 0:01:12]} (12. Rxf4 O-O $11) 12... Ng6 {[%emt 0:02:01] Inhibits Nh4.} 13. Nd3 {[%emt 0:01:04]} O-O-O {[%emt 0:04:38]} 14. Nxf4 {[%emt 0:01:00]} (14. Bxf4 $2 Bxd3 15. Bg3 Bxf1 16. Qxf1 Kb8 $19) 14... Nxf4 {[%emt 0:01:17]} 15. Bxf4 {[%emt 0:00:07][%cal Of3h4]} f6 {[%emt 0:00:51][%cal Rf6e5]} 16. g4 {[%emt 0:16:50]} (16. exf6 Qxf4 17. fxg7 Rh7 $11) (16. Nh4 $14 fxe5 17. Bg3) 16... Be4 $11 {[%emt 0:04:11]} 17. Bg3 {[%emt 0:06:34]} (17. exf6 $11 Qxf4 18. fxg7) 17... fxe5 $17 {[%emt 0:01:56]} 18. Nd2 {[%emt 0:03:17]} Qb6 $1 {[%emt 0:04:02]} 19. Nxe4 {[%emt 0:01:21]} dxe4 {[%emt 0:00:21]} 20. Rf7 {[%emt 0:00:33]} Rhg8 {[%emt 0:01:05][%cal Re5d4]} 21. Qb3 {[%emt 0:03:58]} Qxb3 {[%emt 0:11:23]} (21... exd4 $17 {aiming for ...d3+.} 22. Kg2 d3) 22. axb3 $11 {[%emt 0:00:20]} a6 $1 {[%emt 0:00:21]} 23. dxe5 {[%emt 0:02:01]} Nxe5 {[%emt 0:02:07]} 24. Raf1 {[%emt 0:08:52][%cal Of7g7]} Nd7 {[%emt 0:15:29]} (24... Rd3 $11 {keeps the balance.}) 25. Re1 {[%emt 0:08:50]} (25. Kg2 $16) 25... e5 $2 {[%emt 0:05:03]} (25... Ne5 $1 $11 {and Black stays safe.}) 26. Rxe4 {[%emt 0:02:00]} (26. Rd1 $1 $18 {and the rest is easy.}) 26... Bh8 {[%emt 0:07:00]} 27. b4 $36 {[%emt 0:03:32][%mdl 2048] White is on the roll.} Rdf8 {[%emt 0:12:31]} 28. Re7 {[%emt 0:00:26]} (28. Kg2 $16) 28... Kd8 {[%emt 0:06:48]} (28... Bf6 $1 $14 29. Rf7 Bg5) 29. Re6 $1 $16 {[%emt 0:01:09]} Bf6 {[%emt 0:02:03]} 30. Re1 {[%emt 0:02:22]} Rg7 {[%emt 0:01:48]} 31. Rd6 {[%emt 0:02:23][%cal Og1g2]} Ke7 {[%emt 0:03:13]} ({Better is} 31... Kc7 32. Re6 Rgg8) 32. Red1 {[%emt 0:02:02]} Rd8 {[%emt 0:00:19]} (32... Kd8 $16 33. h4 Kc8) 33. Kg2 {[%emt 0:00:48]} (33. Kf2 $18) 33... Rgg8 {[%emt 0:00:14]} 34. Kf3 {[%emt 0:02:39]} Rgf8 {[%emt 0:02:02]} 35. Ke2 {[%emt 0:00:03] White is much more active.} Nb6 {[%emt 0:01:19]} 36. Rxd8 {[%emt 0:00:30]} Rxd8 {[%emt 0:00:04]} 37. Rxd8 {[%emt 0:00:20]} Kxd8 {[%emt 0:00:03][%mdl 4096] Endgame KBB-KBN} 38. Bg6 {[%emt 0:00:36]} (38. Kd3 $1 $16) 38... Na4 $11 {[%emt 0:00:20]} 39. Kd3 {[%emt 0:01:13]} Ke7 {[%emt 0:01:41]} (39... Nxb2+ $11 40. Kc2 Nc4) 40. b3 {[%emt 0:00:45]} (40. Kc2 $16) 40... e4+ $1 $14 {[%emt 0:00:10]} 41. Bxe4 {[%emt 0:00:00]} Nxc3 {[%emt 0:00:00]} 42. Bf4 {[%emt 0:00:00]} Nxe4 {[%emt 0:00:00]} 43. Kxe4 {[%emt 0:00:00] KB-KB} Bg7 {[%emt 0:00:00]} 44. Kf5 {[%emt 0:00:00]} Kf7 {[%emt 0:00:00]} 45. h4 {[%emt 0:00:00]} Bf8 {[%emt 0:00:00][%cal Oh6h5]} 46. Bd2 {[%emt 0:00:00]} Bg7 {[%emt 0:00:00]} 47. Be3 {[%emt 0:00:00]} Bf8 {[%emt 0:00:00]} 48. Bc5 {[%emt 0:00:00]} Bg7 {[%emt 0:00:00]} 49. h5 {[%emt 0:00:00]} Bc3 {[%emt 0:00:00]} 50. Bd6 {[%emt 0:00:00]} Bd2 {[%emt 0:00:00]} 51. Bc5 {[%emt 0:00:00]} Bc3 {[%emt 0:00:00]} 52. Be3 {[%emt 0:00:00] Dodges Bd2} Bg7 {[%emt 0:00:00]} (52... Kg7 $11) 53. Bd2 {[%emt 0:00:00]} Bf8 {[%emt 0:00:00]} 54. g5 {[%emt 0:00:46]} hxg5 {[%emt 0:00:00]} 55. Kxg5 {[%emt 0:00:21]} Kg7 {[%emt 0:01:09]} 56. Kf5 {[%emt 0:00:15]} c5 {[%emt 0:10:30]} 57. bxc5 {[%emt 0:00:13]} Bxc5 {[%emt 0:00:05]} 58. Ke6 {[%emt 0:00:23]} Bf8 {[%emt 0:07:31]} 59. Kd7 {[%emt 0:00:12]} a5 {[%emt 0:00:22]} 60. Kc7 {[%emt 0:02:35]} (60. Bxa5 $5 Kh6 $8 61. Kc7 $11) 60... b5 $1 {[%emt 0:00:24]} 61. Bxa5 {[%emt 0:00:15]} Kh6 {[%emt 0:00:09]} 62. Kc6 {[%emt 0:00:08]} Kxh5 {[%emt 0:00:15]} 63. Kxb5 {[%emt 0:00:07]} Kg6 {[%emt 0:00:26]} 64. Bb4 {[%emt 0:02:08]} Bh6 {[%emt 0:00:14]} 65. Bc5 {[%emt 0:01:48]} Kf5 {[%emt 0:00:22]} 66. Kc6 {[%emt 0:01:05]} Bd2 $1 {[%emt 0:00:06]} 67. Kd5 {[%emt 0:00:06]} Be1 {[%emt 0:00:17]} 68. Bd4 {[%emt 0:00:15]} Bd2 {[%emt 0:00:11]} 69. Bb2 {[%emt 0:00:45]} Be1 {[%emt 0:00:15]} 70. Bd4 {[%emt 0:00:27]} Bd2 {[%emt 0:00:06]} 71. Kc4 {[%emt 0:00:05]} Ke6 {[%emt 0:00:34]} 72. Bc3 {[%emt 0:00:05]} Be3 {[%emt 0:00:24]} 73. b4 {[%emt 0:00:35]} Kd6 {[%emt 0:00:18] [#]} (73... Kd7 $11) 74. Kb5 $1 $16 {[%emt 0:00:08]} Kc7 {[%emt 0:00:41] [#]} 75. Ka6 $1 {[%emt 0:00:04]} Kc6 {[%emt 0:03:33]} 76. Be5 {[%emt 0:00:49]} Kd5 {[%emt 0:00:55]} 77. Bc7 {[%emt 0:01:36]} Kc6 {[%emt 0:00:05] Wards off Bb6} 78. Ba5 {[%emt 0:01:01]} Kd7 {[%emt 0:00:23]} 79. Bb6 {[%emt 0:00:22]} Bd2 {[%emt 0:00:12]} 80. b5 {[%emt 0:00:09]} Kc8 $2 {[%emt 0:00:15][%mdl 8192]} (80... Bf4 $16) 81. Bd4 {[%emt 0:01:53]} Bf4 {[%emt 0:00:57]} 82. b6 {[%emt 0:00:14]} (82. Kb6 $16) 82... Bg3 $11 {[%emt 0:01:05]} 83. Ka7 {[%emt 0:00:22]} Kd7 $1 {[%emt 0:00:36]} 84. b7 {[%emt 0:00:20]} Kc6 {[%emt 0:00:12]} 85. Ka8 {[%emt 0:00:12][%cal Od4f2] Black must now prevent Bf2!.} Kb5 $1 {[%emt 0:00:44]} 86. Ba7 {[%emt 0:00:06] Threatening mate with Bb8.} Ka6 $4 {[%emt 0:00:31][%mdl 8192]} (86... Ka5 $11 87. Bb8 (87. b8=R Bxb8 $11) 87... Bf2 88. Bc7+ Kb4 89. b8=Q+ (89. b8=B Kb5 $11) 89... Kc3) 87. Bb8 {[%emt 0:00:06]} ({Stronger than} 87. b8=R Bxb8 $11) 87... Bf2 {[%emt 0:00:35]} 88. Be5 {[%emt 0:00:07]} Bc5 1-0

[Event "Slovakian ECo-C Extraliga 2024-25"]
[Site "Slovakia"]
[Date "2025.01.19"]
[Round "4.5"]
[White "Hajek Oskar"]
[Black "Motuz, Karol"]
[Result "1/2-1/2"]
[Annotator "TA"]
[ECO "C47"]
[WhiteElo "2251"]
[BlackElo "2305"]
[PlyCount "44"]
[EventDate "2024.09.12"]
[EventType "team-tourn"]
[EventCountry "SVK"]
[SourceTitle "playchess.com"]
[Source "ChessBase"]
[SourceQuality "1"]
[TimeControl "5400+30"]

{[%evp 16,44,5,13,9,5,12,15,12,12,10,13,14,21,48,61,45,52,48,65,61,38,45,18,50,0,0,0,0,0,404]} 1. e4 {[%emt 0:00:30]} e5 {[%emt 0:00:00]} 2. Nf3 {[%emt 0:00:00]} Nc6 {[%emt 0:00:06]} 3. Nc3 {[%emt 0:00:00]} Nf6 {[%emt 0:02:43]} 4. d4 {[%emt 0:00:00]} exd4 {[%emt 0:00:19]} 5. Nxd4 {[%emt 0:00:05]} Bb4 {[%emt 0:00:28]} 6. Nxc6 {[%emt 0:00:07]} bxc6 {[%emt 0:00:10]} 7. Bd3 {[%emt 0:00:17][%cal Bf1d3,Bd3e4,Be4c6][%mdl 32]} O-O {[%emt 0:01:46]} 8. O-O {[%emt 0:00:07]} d5 {[%emt 0:00:15]} 9. Bd2 {[%emt 0:00:13]} (9. Qf3 {is more complex.} Bxc3 10. bxc3 dxe4 11. Bxe4 Nxe4 12. Qxe4 Qd5 13. Re1) 9... Bxc3 {[%emt 0:22:05]} 10. Bxc3 {[%emt 0:00:19]} dxe4 {[%emt 0:03:33]} 11. Bxf6 {[%emt 0:00:34]} Qxf6 {[%emt 0:01:49]} 12. Bxe4 {[%emt 0:00:06]} Qxb2 {[%emt 0:23:43]} 13. Bxc6 {[%emt 0:00:24]} Ba6 {[%emt 0:00:49]} 14. Rb1 {[%emt 0:11:01]} Qc3 {[%emt 0:04:10]} 15. Bxa8 {[%emt 0:03:23]} Bxf1 {[%emt 0:00:23]} 16. Qf3 {[%emt 0:05:06]} Qxf3 {[%emt 0:02:18]} 17. Bxf3 $14 {[%emt 0:00:32][%mdl 4096] Endgame KRB-KRB} Ba6 {[%emt 0:01:50]} 18. Rb3 {[%emt 0:04:46]} Rd8 {[%emt 0:07:33]} 19. Ra3 {[%emt 0:06:24]} Rd6 {[%emt 0:00:59] [#]} 20. c4 {[%emt 0:05:56]} Bxc4 $11 {[%emt 0:02:56]} 21. Rxa7 {[%emt 0:01:24] Ra8+ would kill now.} Kf8 {[%emt 0:01:39]} 22. Rxc7 {[%emt 0:08:55]} Ra6 $2 {[%mdl 8192]} 1/2-1/2